[Event "GER-chT Youth Countries 2018"]
[Site "Wurzburg"]
[Date "2018.10.05"]
[Round "4"]
[White "Huber, Benedikt"]
[Black "Wu, Luka"]
[Result "*"]
[ECO "D10"]
[WhiteElo "2116"]
[BlackElo "2001"]
[Annotator "NA"]
[PlyCount "144"]
[EventDate "2018.10.03"]
[EventType "team-tourn"]
[EventCountry "GER"]
[SourceTitle "playchess.com"]
[Source "ChessBase"]
[SourceQuality "1"]
[TimeControl "40/5400+30:1800+30"]

1. d4 {[%emt 0:00:00]} d5 {[%emt 0:00:00]} 2. c4 {[%emt 0:00:00]} c6 {[%emt 0:00:00]} 3. cxd5 {[%emt 0:00:26]} cxd5 {[%emt 0:00:27]} 4. Nc3 {[%emt 0:00:08]} Nf6 {[%emt 0:02:12]} 5. Bf4 {[%emt 0:00:19]} a6 {[%emt 0:04:38]} 6. e3 {[%emt 0:03:47]} Nc6 {[%emt 0:01:50]} 7. Bd3 {[%emt 0:00:09]} Bg4 {[%emt 0:03:23]} 8. Nge2 $11 {[%emt 0:01:53] LiveBook: 778 Partien} e6 {[%emt 0:01:31]} 9. a3 {[%emt 0:03:51]} Bd6 {[%emt 0:04:09]} 10. Qc2 {[%emt 0:01:02]} Rc8 {[%emt 0:03:12]} 11. Bxd6 {[%emt 0:02:50]} Qxd6 {[%emt 0:00:08]} 12. Ng3 {[%emt 0:00:06]} e5 {[%emt 0:11:29]} 13. Bf5 {[%emt 0:05:13]} Rd8 {[%emt 0:04:20]} 14. dxe5 {[%emt 0:09:10]} Qxe5 {[%emt 0:01:33]} 15. Bxg4 {[%emt 0:05:22]} Nxg4 {[%emt 0:00:06]} 16. Qf5 {[%emt 0:00:25]} Qxf5 {[%emt 0:01:38]} 17. Nxf5 {[%emt 0:00:01]} g6 {[%emt 0:00:08]} 18. Nd4 {[%emt 0:00:19]} Nxd4 {[%emt 0:00:38]} 19. exd4 {[%emt 0:00:02]} Ke7 {[%emt 0:01:04]} 20. Kd2 {[%emt 0:09:34]} Nxf2 {[%emt 0:05:57]} 21. Rae1+ {[%emt 0:00:01]} Ne4+ {[%emt 0:00:08]} 22. Nxe4 {[%emt 0:00:10]} dxe4 {[%emt 0:00:05]} 23. Rxe4+ {[%emt 0:00:03]} Kd6 {[%emt 0:00:31]} 24. Rhe1 {[%emt 0:02:02]} Rd7 {[%emt 0:01:17]} 25. Rc1 {[%emt 0:01:19]} Rdd8 {[%emt 0:01:11]} 26. Rce1 {[%emt 0:04:48]} Rd7 {[%emt 0:00:14]} 27. g4 {[%emt 0:02:30]} Rc8 {[%emt 0:01:37]} 28. Rf1 {[%emt 0:03:19]} Rc6 {[%emt 0:10:09]} 29. Kd3 {[%emt 0:02:28]} Kc7 {[%emt 0:01:35]} 30. g5 {[%emt 0:01:30]} Rcd6 {[%emt 0:01:55]} 31. Rc1+ {[%emt 0:05:38]} Kd8 {[%emt 0:00:47]} 32. Rce1 {[%emt 0:00:02]} Rd5 {[%emt 0:02:09]} 33. h4 {[%emt 0:00:28]} Kc7 {[%emt 0:00:54]} 34. Rf4 {[%emt 0:00:50]} Kd8 {[%emt 0:01:01]} 35. Re2 {[%emt 0:05:28]} h6 {[%emt 0:15:35]} 36. Rg2 {[%emt 0:06:31]} Ke8 {[%emt 0:04:23]} 37. Ke3 {[%emt 0:04:48]} hxg5 {[%emt 0:01:04]} 38. Re4+ {[%emt 0:02:26]} Kf8 {[%emt 0:00:46]} 39. Rxg5 {[%emt 0:00:59]} Rxg5 {[%emt 0:01:23]} 40. hxg5 {[%emt 0:00:01]} Kg7 {[%emt 0:00:22]} 41. Re5 {[%emt 0:26:47]} f6 {[%emt 0:01:50]} 42. gxf6+ {[%emt 0:00:16]} Kxf6 {[%emt 0:00:04]} 43. Rc5 {[%emt 0:00:04]} g5 {[%emt 0:01:37]} 44. Ke4 {[%emt 0:01:36]} Re7+ {[%emt 0:00:24]} 45. Kf3 {[%emt 0:02:07]} Kg6 {[%emt 0:00:54]} 46. Rc8 {[%emt 0:00:45]} Rf7+ {[%emt 0:02:56]} 47. Ke4 {[%emt 0:01:58]} Kf6 {[%emt 0:08:18]} 48. d5 {[%emt 0:05:52]} Re7+ {[%emt 0:02:08]} 49. Kd4 {[%emt 0:00:47]} Re2 {[%emt 0:00:30]} 50. b4 {[%emt 0:02:15]} Rd2+ {[%emt 0:01:05]} 51. Ke4 {[%emt 0:00:18]} Re2+ {[%emt 0:00:12]} 52. Kd4 {[%emt 0:00:09]} Rd2+ {[%emt 0:00:06]} 53. Ke4 {[%emt 0:00:08]} Re2+ {[%emt 0:00:46]} 54. Kd3 {[%emt 0:00:07]} Ra2 {[%emt 0:00:11]} 55. Rc3 {[%emt 0:03:04]} Ke5 {[%emt 0:00:49]} 56. Kc4 {[%emt 0:00:15]} Ke4 {[%emt 0:24:40]} 57. Rg3 {[%emt 0:06:46]} Rc2+ {[%emt 0:02:45]} 58. Kb3 {[%emt 0:00:06]} Rd2 {[%emt 0:00:04]} 59. Rxg5 {[%emt 0:00:23]} Rxd5 {[%emt 0:00:05]} 60. Rg7 {[%emt 0:00:08]} Rb5 {[%emt 0:02:17]} 61. Rd7 {[%emt 0:01:14]} Rb6 {[%emt 0:01:08]} 62. a4 {[%emt 0:01:27]} Ke5 {[%emt 0:00:39]} 63. a5 {[%emt 0:02:10]} Rb5 {[%emt 0:00:08]} 64. Kc4 {[%emt 0:00:09]} Ke6 {[%emt 0:00:23]} 65. Rd4 {[%emt 0:00:33]} Ke5 {[%emt 0:00:14]} 66. Rd8 {[%emt 0:01:11]} Ke6 {[%emt 0:00:20]} 67. Rd4 {[%emt 0:00:55]} Ke5 {[%emt 0:00:15]} 68. Rd7 {[%emt 0:00:36]} Ke6 {[%emt 0:00:14]} 69. Rd8 {[%emt 0:00:02]} Ke5 {[%emt 0:00:24]} 70. Rh8 {[%emt 0:01:25]} Kd6 {[%emt 0:00:11]} 71. Rh6+ {[%emt 0:00:11]} Kc7 {[%emt 0:00:30]} 72. Rh7+ {[%emt 0:00:01]} Kd6 {[%emt 0:00:07]} *

[Event "GER-chT Youth Countries 2018"]
[Site "Wurzburg"]
[Date "2018.10.05"]
[Round "4"]
[White "Mantel, Ruben"]
[Black "Steffens, Oliver"]
[Result "1-0"]
[ECO "A45"]
[WhiteElo "2101"]
[BlackElo "1960"]
[Annotator "NA"]
[PlyCount "88"]
[EventDate "2018.10.03"]
[EventType "team-tourn"]
[EventCountry "GER"]
[SourceTitle "playchess.com"]
[Source "ChessBase"]
[SourceQuality "1"]
[TimeControl "40/5400+30:1800+30"]

1. d4 {[%emt 0:00:00]} Nf6 {[%emt 0:00:00]} 2. Nc3 {[%emt 0:02:39]} d5 {[%emt 0:02:43]} 3. Bf4 {[%emt 0:02:46]} c5 {[%emt 0:01:34]} 4. e3 {[%emt 0:00:36]} a6 {[%emt 0:00:09]} 5. dxc5 {[%emt 0:03:50]} Nc6 $11 {[%emt 0:03:54] LiveBook: 26 Games} 6. Nf3 {[%emt 0:14:52]} e6 {[%emt 0:01:05]} 7. Na4 {[%emt 0:14:34]} Bxc5 {[%emt 0:07:59]} 8. Nxc5 {[%emt 0:00:09]} Qa5+ {[%emt 0:00:03]} 9. c3 {[%emt 0:00:13]} Qxc5 {[%emt 0:00:05]} 10. h3 {[%emt 0:01:36]} O-O {[%emt 0:00:51]} 11. Bd3 {[%emt 0:01:43]} Re8 {[%emt 0:01:01]} 12. Ne5 {[%emt 0:01:47]} Ne4 {[%emt 0:08:24]} 13. Qh5 {[%emt 0:10:08]} Re7 {[%emt 0:12:04]} 14. Rd1 {[%emt 0:16:18]} f5 {[%emt 0:04:31]} 15. Bxe4 {[%emt 0:02:22]} Nxe5 {[%emt 0:06:53]} 16. Bxe5 {[%emt 0:03:36]} fxe4 {[%emt 0:01:01]} 17. O-O {[%emt 0:06:03]} Bd7 {[%emt 0:04:23]} 18. Rd4 {[%emt 0:07:11]} Rf7 {[%emt 0:03:02]} 19. Bg3 {[%emt 0:00:50]} Bb5 {[%emt 0:01:57]} 20. Rc1 {[%emt 0:01:04]} Bd3 {[%emt 0:03:17]} 21. f4 {[%emt 0:04:28]} Rf5 {[%emt 0:08:00]} 22. Qd1 {[%emt 0:00:30]} e5 {[%emt 0:00:44]} 23. fxe5 {[%emt 0:01:51]} Rf1+ {[%emt 0:00:08]} 24. Qxf1 {[%emt 0:00:01]} Bxf1 {[%emt 0:00:09]} 25. Rxf1 {[%emt 0:00:03]} Rf8 {[%emt 0:00:18]} 26. Rxf8+ {[%emt 0:00:03]} Kxf8 {[%emt 0:00:15]} 27. c4 {[%emt 0:00:18]} dxc4 {[%emt 0:01:21]} 28. e6 {[%emt 0:01:20]} Ke7 {[%emt 0:04:27]} 29. Rxe4 {[%emt 0:00:05]} b5 {[%emt 0:01:26]} 30. Re5 {[%emt 0:00:31]} Qc6 {[%emt 0:01:51]} 31. e4 {[%emt 0:02:47]} h6 {[%emt 0:01:12]} 32. h4 {[%emt 0:00:45]} Qd6 {[%emt 0:01:18]} 33. Kh2 {[%emt 0:00:45]} Qd4 {[%emt 0:01:30]} 34. h5 {[%emt 0:00:28]} b4 {[%emt 0:00:41]} 35. Bh4+ {[%emt 0:00:21]} Ke8 {[%emt 0:00:44]} 36. Rd5 {[%emt 0:00:26]} Qb6 {[%emt 0:01:19]} 37. e7 {[%emt 0:00:29]} Qc7+ {[%emt 0:02:19]} 38. Kh1 {[%emt 0:00:30]} Qd7 {[%emt 0:00:59]} 39. Rxd7 {[%emt 0:00:13]} Kxd7 {[%emt 0:00:03]} 40. Be1 {[%emt 0:00:17]} a5 {[%emt 0:00:29]} 41. a3 {[%emt 0:30:10]} c3 {[%emt 0:30:23]} 42. Bxc3 {[%emt 0:00:33]} bxc3 {[%emt 0:00:06]} 43. bxc3 {[%emt 0:00:04]} Kxe7 {[%emt 0:00:02]} 44. Kh2 {[%emt 0:00:11]} Ke6 {[%emt 0:00:08]} 1-0

[Event "GER-chT Youth Countries 2018"]
[Site "Wurzburg"]
[Date "2018.10.05"]
[Round "4"]
[White "Burian, Simon"]
[Black "Nguyen, Huy Dat"]
[Result "0-1"]
[ECO "C55"]
[WhiteElo "2091"]
[BlackElo "2194"]
[Annotator "NA"]
[PlyCount "104"]
[EventDate "2018.10.03"]
[EventType "team-tourn"]
[EventCountry "GER"]
[SourceTitle "playchess.com"]
[Source "ChessBase"]
[SourceQuality "1"]
[TimeControl "40/5400+30:1800+30"]

1. e4 {[%emt 0:00:00]} e5 {[%emt 0:00:00]} 2. Nf3 {[%emt 0:00:00]} Nc6 {[%emt 0:00:00]} 3. Bc4 {[%emt 0:00:05]} Nf6 {[%emt 0:00:00]} 4. d3 {[%emt 0:00:35]} Be7 {[%emt 0:00:00]} 5. O-O {[%emt 0:01:02]} d6 {[%emt 0:00:12]} 6. c3 {[%emt 0:01:29]} O-O {[%emt 0:00:07]} 7. Bb3 {[%emt 0:02:42]} Na5 {[%emt 0:00:26]} 8. Bc2 {[%emt 0:00:22]} c5 {[%emt 0:00:17]} 9. Nbd2 {[%emt 0:03:26]} Nc6 {[%emt 0:01:23]} 10. Re1 {[%emt 0:02:19]} Re8 {[%emt 0:01:26]} 11. Nf1 $11 {[%emt 0:03:05] LiveBook: 69 Games} h6 {[%emt 0:00:50]} 12. Ng3 {[%emt 0:03:22]} Bf8 {[%emt 0:00:40]} 13. Qe2 {[%emt 0:04:58]} b5 {[%emt 0:10:12]} 14. h3 {[%emt 0:05:14]} a5 {[%emt 0:10:19]} 15. Rd1 {[%emt 0:08:08]} Qc7 {[%emt 0:13:39]} 16. Nh4 {[%emt 0:04:51]} Kh8 {[%emt 0:07:46]} 17. Qf3 {[%emt 0:03:28]} Ng8 {[%emt 0:03:57]} 18. Ngf5 {[%emt 0:08:39]} a4 {[%emt 0:03:09]} 19. g4 {[%emt 0:04:55]} g6 {[%emt 0:05:37]} 20. Ne3 {[%emt 0:02:07]} Be6 {[%emt 0:00:34]} 21. Nd5 {[%emt 0:09:40]} Qd8 {[%emt 0:00:50]} 22. Ng2 {[%emt 0:00:52]} b4 {[%emt 0:05:07]} 23. Nge3 {[%emt 0:05:21]} a3 {[%emt 0:04:46]} 24. Bb3 {[%emt 0:03:17]} Ra7 {[%emt 0:07:42]} 25. Rb1 {[%emt 0:02:29]} axb2 {[%emt 0:09:07]} 26. Bxb2 {[%emt 0:00:24]} bxc3 {[%emt 0:00:09]} 27. Bxc3 {[%emt 0:00:15]} Nd4 {[%emt 0:00:20]} 28. Bxd4 {[%emt 0:00:13]} exd4 {[%emt 0:00:36]} 29. Ng2 {[%emt 0:00:45]} Qg5 {[%emt 0:03:59]} 30. Qg3 {[%emt 0:03:26]} Qd8 {[%emt 0:05:05]} 31. Qf3 {[%emt 0:05:02]} Bg7 {[%emt 0:00:50]} 32. Qe2 {[%emt 0:01:50]} Kh7 {[%emt 0:00:35]} 33. Ngf4 {[%emt 0:02:24]} Be5 {[%emt 0:01:23]} 34. Qd2 {[%emt 0:02:42]} Qh4 {[%emt 0:01:47]} 35. Kg2 {[%emt 0:01:22]} Bc8 {[%emt 0:00:54]} 36. Rg1 {[%emt 0:01:48]} f5 {[%emt 0:00:59]} 37. f3 {[%emt 0:03:43]} g5 {[%emt 0:01:04]} 38. Ne2 {[%emt 0:00:27]} fxg4 {[%emt 0:00:07]} 39. hxg4 {[%emt 0:00:24]} Qh2+ {[%emt 0:00:05]} 40. Kf1 {[%emt 0:00:25]} Rf8 {[%emt 0:00:12]} 41. f4 {[%emt 0:30:52]} Bxf4 {[%emt 0:04:55]} 42. Ndxf4 {[%emt 0:00:00]} Rxf4+ {[%emt 0:00:16]} 43. Ke1 {[%emt 0:00:00]} Nf6 {[%emt 0:01:42]} 44. Kd1 {[%emt 0:00:00]} Rf2 {[%emt 0:01:05]} 45. Re1 {[%emt 0:00:00]} Bxg4 {[%emt 0:00:09]} 46. Rb2 {[%emt 0:00:00]} Nh5 {[%emt 0:00:49]} 47. Kc1 {[%emt 0:00:00]} Nf4 {[%emt 0:00:22]} 48. Bd1 {[%emt 0:00:00]} Ra3 {[%emt 0:05:36]} 49. Rb7+ {[%emt 0:00:00]} Kg6 {[%emt 0:00:10]} 50. Nxf4+ {[%emt 0:00:00]} gxf4 {[%emt 0:00:09]} 51. Qxf2 {[%emt 0:00:00]} Qxf2 {[%emt 0:00:20]} 52. Rh1 {[%emt 0:00:00]} Bxd1 {[%emt 0:00:27]} 0-1

[Event "GER-chT Youth Countries 2018"]
[Site "Wurzburg"]
[Date "2018.10.05"]
[Round "4"]
[White "Philipp, Mathias"]
[Black "Lutz, Ruben"]
[Result "1/2-1/2"]
[ECO "C05"]
[WhiteElo "2076"]
[BlackElo "2043"]
[Annotator "NA"]
[PlyCount "57"]
[EventDate "2018.10.03"]
[EventType "team-tourn"]
[EventCountry "GER"]
[SourceTitle "playchess.com"]
[Source "ChessBase"]
[SourceQuality "1"]
[TimeControl "40/5400+30:1800+30"]

1. e4 {[%emt 0:00:00]} e6 {[%emt 0:00:00]} 2. d4 {[%emt 0:00:00]} d5 {[%emt 0:00:00]} 3. Nd2 {[%emt 0:00:00]} Nf6 {[%emt 0:00:00]} 4. e5 {[%emt 0:00:00]} Nfd7 {[%emt 0:00:05]} 5. c3 {[%emt 0:00:00]} c5 {[%emt 0:00:21]} 6. f4 {[%emt 0:00:00]} Nc6 {[%emt 0:00:13]} 7. Ndf3 {[%emt 0:00:00]} Be7 {[%emt 0:00:27]} 8. Bd3 {[%emt 0:00:30]} a5 $14 {[%emt 0:16:11]} 9. Ne2 {[%emt 0:00:34]} a4 {[%emt 0:01:01]} 10. g4 {[%emt 0:01:50]} a3 {[%emt 0:02:28]} 11. b3 {[%emt 0:01:10]} cxd4 {[%emt 0:00:29]} 12. cxd4 {[%emt 0:01:47]} Nb4 {[%emt 0:02:02]} 13. Bb1 {[%emt 0:01:20]} b6 {[%emt 0:03:01]} 14. Kf2 {[%emt 0:07:28]} f6 {[%emt 0:08:30]} 15. f5 {[%emt 0:05:23]} fxe5 {[%emt 0:04:38]} 16. dxe5 {[%emt 0:04:42]} O-O {[%emt 0:02:24]} 17. Be3 {[%emt 0:10:06]} Nc5 {[%emt 0:09:49]} 18. Ned4 {[%emt 0:04:26]} exf5 {[%emt 0:02:00]} 19. Bxf5 {[%emt 0:01:48]} Ne4+ {[%emt 0:07:43]} 20. Kg2 {[%emt 0:06:10]} Bc5 {[%emt 0:04:30]} 21. Rf1 {[%emt 0:10:55]} Qe8 {[%emt 0:05:59]} 22. Qe1 {[%emt 0:17:40]} Nd3 {[%emt 0:05:11]} 23. Qh4 {[%emt 0:01:21]} Bxf5 {[%emt 0:00:21]} 24. Nxf5 {[%emt 0:01:55]} Nxe5 {[%emt 0:02:28]} 25. Bxc5 {[%emt 0:01:37]} Rxf5 {[%emt 0:08:25]} 26. gxf5 {[%emt 0:01:03]} Nxf3 {[%emt 0:00:32]} 27. Rxf3 {[%emt 0:00:11]} bxc5 {[%emt 0:00:07]} 28. Re1 {[%emt 0:06:51]} Qe5 {[%emt 0:03:58]} 29. Re2 1/2-1/2

[Event "GER-chT Youth Countries 2018"]
[Site "Wurzburg"]
[Date "2018.10.05"]
[Round "4"]
[White "Lesny, Florian"]
[Black "Pubantz, Jan"]
[Result "1/2-1/2"]
[ECO "B90"]
[WhiteElo "2073"]
[BlackElo "2084"]
[Annotator "NA"]
[PlyCount "109"]
[EventDate "2018.10.03"]
[EventType "team-tourn"]
[EventCountry "GER"]
[SourceTitle "playchess.com"]
[Source "ChessBase"]
[SourceQuality "1"]
[TimeControl "40/5400+30:1800+30"]

1. e4 {[%emt 0:00:00]} c5 {[%emt 0:00:00]} 2. Nf3 {[%emt 0:00:00]} d6 {[%emt 0:00:00]} 3. d4 {[%emt 0:00:00]} cxd4 {[%emt 0:00:00]} 4. Nxd4 {[%emt 0:00:06]} Nf6 {[%emt 0:00:00]} 5. Nc3 {[%emt 0:00:14]} a6 {[%emt 0:00:00]} 6. Be3 {[%emt 0:00:16]} Ng4 {[%emt 0:00:01]} 7. Bc1 {[%emt 0:00:22]} Nc6 {[%emt 0:00:38]} 8. Be2 {[%emt 0:04:00]} Qb6 {[%emt 0:01:14]} 9. Bxg4 {[%emt 0:01:34] LiveBook: 8 Games} Bxg4 {[%emt 0:00:16]} 10. Qxg4 {[%emt 0:00:34]} Qxd4 {[%emt 0:00:20]} 11. O-O {[%emt 0:01:59]} e6 {[%emt 0:00:57]} 12. Rd1 {[%emt 0:03:16]} Qf6 $11 {[%emt 0:01:27]} 13. Qg5 {[%emt 0:11:29]} Rc8 {[%emt 0:11:45]} 14. Qxf6 {[%emt 0:04:47]} gxf6 {[%emt 0:00:05]} 15. Ne2 {[%emt 0:02:08]} Ke7 {[%emt 0:02:47]} 16. c3 {[%emt 0:02:58]} h5 {[%emt 0:15:20]} 17. Bf4 {[%emt 0:10:00]} Ne5 {[%emt 0:01:10]} 18. Rd4 {[%emt 0:07:31]} Rd8 {[%emt 0:11:51]} 19. Rad1 {[%emt 0:02:20]} h4 {[%emt 0:03:00]} 20. c4 {[%emt 0:03:07]} Bg7 {[%emt 0:06:36]} 21. Kf1 {[%emt 0:04:15]} b6 {[%emt 0:05:33]} 22. Nc3 {[%emt 0:03:41]} Bh6 {[%emt 0:09:23]} 23. Bxh6 {[%emt 0:01:58]} Rxh6 {[%emt 0:00:04]} 24. h3 {[%emt 0:02:00]} Rh5 {[%emt 0:06:16]} 25. f4 {[%emt 0:10:42]} Nc6 {[%emt 0:04:09]} 26. R4d2 {[%emt 0:01:18]} f5 {[%emt 0:05:40]} 27. Kf2 {[%emt 0:01:31]} Na5 {[%emt 0:06:38]} 28. b3 {[%emt 0:00:37]} Nb7 {[%emt 0:00:42]} 29. Ke3 {[%emt 0:04:55]} Rg8 {[%emt 0:01:25]} 30. Kf2 {[%emt 0:00:58]} f6 {[%emt 0:03:51]} 31. e5 {[%emt 0:03:00]} fxe5 {[%emt 0:00:27]} 32. fxe5 {[%emt 0:00:27]} Rd8 {[%emt 0:00:07]} 33. exd6+ {[%emt 0:00:37]} Rxd6 {[%emt 0:00:19]} 34. Na4 {[%emt 0:01:35]} b5 {[%emt 0:00:54]} 35. Rxd6 {[%emt 0:02:28]} Nxd6 {[%emt 0:00:07]} 36. Nc5 {[%emt 0:01:21]} bxc4 {[%emt 0:00:31]} 37. Re1 {[%emt 0:01:55]} Rh6 {[%emt 0:00:17]} 38. bxc4 {[%emt 0:02:28]} Nxc4 {[%emt 0:01:19]} 39. Nxa6 {[%emt 0:01:13]} e5 {[%emt 0:00:51]} 40. Nb4 {[%emt 0:01:33]} Rd6 {[%emt 0:02:23]} 41. a4 {[%emt 0:32:13]} e4 {[%emt 0:06:24]} 42. Rc1 {[%emt 0:00:00]} Nd2 {[%emt 0:16:30]} 43. a5 Nb3 {[%emt 0:08:40]} 44. Rc7+ {[%emt 0:00:00]} Rd7 {[%emt 0:01:20]} 45. Rxd7+ {[%emt 0:00:00]} Kxd7 {[%emt 0:00:06]} 46. a6 {[%emt 0:00:00]} Kc7 {[%emt 0:00:35]} 47. Nd5+ {[%emt 0:00:00]} Kb8 {[%emt 0:00:41]} 48. Ne7 Nd4 49. Ng6 {[%emt 0:00:00]} Ka7 {[%emt 0:00:58]} 50. Nxh4 f4 51. Ng6 {[%emt 0:00:00]} e3+ {[%emt 0:00:32]} 52. Ke1 {[%emt 0:00:00]} f3 {[%emt 0:00:11]} 53. gxf3 {[%emt 0:00:00]} Nxf3+ {[%emt 0:00:07]} 54. Ke2 {[%emt 0:00:00]} Ng1+ {[%emt 0:00:06]} 55. Kxe3 {[%emt 0:00:00]} 1/2-1/2

[Event "GER-chT Youth Countries 2018"]
[Site "Wurzburg"]
[Date "2018.10.05"]
[Round "4"]
[White "Musiolik, David"]
[Black "Hartge, Gedeon"]
[Result "1/2-1/2"]
[ECO "B43"]
[WhiteElo "2057"]
[BlackElo "2214"]
[Annotator "NA"]
[PlyCount "99"]
[EventDate "2018.10.03"]
[EventType "team-tourn"]
[EventCountry "GER"]
[SourceTitle "playchess.com"]
[Source "ChessBase"]
[SourceQuality "1"]
[TimeControl "40/5400+30:1800+30"]

1. e4 {[%emt 0:00:00]} c5 {[%emt 0:00:00]} 2. Nf3 {[%emt 0:00:00]} e6 {[%emt 0:00:00]} 3. d4 {[%emt 0:00:00]} cxd4 {[%emt 0:00:00]} 4. Nxd4 {[%emt 0:00:00]} a6 {[%emt 0:00:00]} 5. Nc3 {[%emt 0:00:17]} Qc7 {[%emt 0:00:00]} 6. Bd3 {[%emt 0:00:19]} Nf6 {[%emt 0:00:00]} 7. f4 {[%emt 0:20:14]} d6 {[%emt 0:00:04]} 8. O-O {[%emt 0:04:41]} Nbd7 {[%emt 0:00:39]} 9. Kh1 {[%emt 0:10:56]} Be7 {[%emt 0:00:51]} 10. Qe2 {[%emt 0:01:32]} b5 {[%emt 0:02:56]} 11. a4 b4 {[%emt 0:07:08]} 12. Na2 {[%emt 0:04:23]} d5 {[%emt 0:10:05]} 13. e5 {[%emt 0:04:04]} Ne4 {[%emt 0:09:52]} 14. Bxe4 {[%emt 0:02:23]} dxe4 {[%emt 0:00:04]} 15. Qxe4 {[%emt 0:00:56]} Bb7 {[%emt 0:00:16]} 16. Qe2 {[%emt 0:00:58]} h5 {[%emt 0:18:53]} 17. f5 {[%emt 0:14:46]} Qxe5 {[%emt 0:06:42]} 18. fxe6 {[%emt 0:07:49]} Qxd4 {[%emt 0:03:49]} 19. Be3 {[%emt 0:01:13]} Qg4 {[%emt 0:03:17]} 20. exd7+ {[%emt 0:01:14]} Kf8 {[%emt 0:04:48]} 21. Qf2 {[%emt 0:07:18]} f6 {[%emt 0:13:56]} 22. Bc5 {[%emt 0:07:50]} Bxc5 {[%emt 0:04:37]} 23. Qxc5+ {[%emt 0:00:04]} Kf7 {[%emt 0:00:04]} 24. Rf2 {[%emt 0:01:29]} Qxd7 {[%emt 0:01:07]} 25. Qxb4 {[%emt 0:03:59]} Rab8 {[%emt 0:05:37]} 26. Qd2 {[%emt 0:02:48]} Qxa4 {[%emt 0:01:29]} 27. b3 {[%emt 0:02:49]} Qg4 {[%emt 0:00:33]} 28. Kg1 {[%emt 0:00:53]} Rhd8 {[%emt 0:01:28]} 29. Qe2 {[%emt 0:00:22]} Qg5 {[%emt 0:03:28]} 30. Re1 {[%emt 0:00:37]} Re8 {[%emt 0:02:09]} 31. Qc4+ {[%emt 0:00:26]} Bd5 {[%emt 0:00:10]} 32. Qc7+ {[%emt 0:00:18]} Kg8 {[%emt 0:00:33]} 33. Rfe2 {[%emt 0:00:41]} Kh7 {[%emt 0:01:00]} 34. Qg3 {[%emt 0:00:44]} Rxe2 {[%emt 0:00:51]} 35. Rxe2 {[%emt 0:00:05]} Qxg3 {[%emt 0:00:25]} 36. hxg3 {[%emt 0:00:01]} Bf7 {[%emt 0:00:35]} 37. Kf2 {[%emt 0:01:00]} a5 {[%emt 0:00:27]} 38. Nc3 {[%emt 0:00:44]} Rc8 {[%emt 0:00:31]} 39. Nb5 {[%emt 0:00:30]} Bg6 {[%emt 0:00:30]} 40. Nd4 {[%emt 0:00:44]} a4 {[%emt 0:00:31]} 41. bxa4 {[%emt 0:03:39]} Rc4 {[%emt 0:01:24]} 42. Ke3 {[%emt 0:06:18]} Rxa4 {[%emt 0:00:49]} 43. c3 {[%emt 0:02:51]} Ra3 {[%emt 0:03:40]} 44. Kd2 {[%emt 0:01:15]} Ra2+ {[%emt 0:01:51]} 45. Ke3 {[%emt 0:01:14]} Ra3 {[%emt 0:00:20]} 46. Kd2 {[%emt 0:00:18]} Ra2+ {[%emt 0:00:11]} 47. Ke1 {[%emt 0:06:06]} Ra1+ {[%emt 0:02:35]} 48. Kf2 {[%emt 0:00:40]} Rc1 {[%emt 0:02:16]} 49. Re3 {[%emt 0:00:19]} Bf7 {[%emt 0:00:43]} 50. Nf3 {[%emt 0:08:34]} 1/2-1/2

[Event "GER-chT Youth Countries 2018"]
[Site "Wurzburg"]
[Date "2018.10.05"]
[Round "4"]
[White "Richter, Nils"]
[Black "Wu, Leon"]
[Result "1/2-1/2"]
[ECO "B51"]
[WhiteElo "2035"]
[BlackElo "2009"]
[Annotator "NA"]
[PlyCount "83"]
[EventDate "2018.10.03"]
[EventType "team-tourn"]
[EventCountry "GER"]
[SourceTitle "playchess.com"]
[Source "ChessBase"]
[SourceQuality "1"]
[TimeControl "40/5400+30:1800+30"]

1. e4 {[%emt 0:00:00]} c5 {[%emt 0:00:00]} 2. Nf3 {[%emt 0:00:00]} d6 {[%emt 0:00:00]} 3. Bb5+ {[%emt 0:00:00]} Nd7 {[%emt 0:01:29]} 4. O-O {[%emt 0:00:00]} e6 {[%emt 0:02:12]} 5. c3 {[%emt 0:00:56]} Ngf6 {[%emt 0:01:07]} 6. Re1 {[%emt 0:00:12]} Be7 {[%emt 0:02:07]} 7. d4 {[%emt 0:00:59]} cxd4 {[%emt 0:03:16]} 8. cxd4 {[%emt 0:00:06]} ({Reject} 8. Qxd4 a6 $11) ({Don't play} 8. Nxd4 O-O $11) 8... O-O {[%emt 0:00:31]} 9. Nc3 $14 {[%emt 0:01:45] LiveBook: 4 Games} e5 {[%emt 0:07:51]} 10. h3 {[%emt 0:06:41]} a6 {[%emt 0:04:14]} 11. Bf1 {[%emt 0:08:48]} b5 {[%emt 0:04:32]} 12. b4 {[%emt 0:13:03]} d5 {[%emt 0:17:03]} 13. Nxd5 {[%emt 0:03:17]} Nxd5 {[%emt 0:00:44]} 14. exd5 {[%emt 0:00:02]} Bxb4 {[%emt 0:03:40]} 15. Bd2 {[%emt 0:11:56]} Bxd2 {[%emt 0:01:12]} 16. Qxd2 {[%emt 0:00:01]} Nb6 {[%emt 0:02:23]} 17. dxe5 {[%emt 0:03:49]} Qxd5 {[%emt 0:03:07]} 18. Qa5 {[%emt 0:07:20]} Nc4 {[%emt 0:06:25]} 19. Bxc4 {[%emt 0:00:49]} Qxc4 {[%emt 0:00:24]} 20. Rac1 {[%emt 0:00:07]} Qd5 {[%emt 0:02:05]} 21. Red1 {[%emt 0:00:49]} Qe4 {[%emt 0:02:40]} 22. Rd4 {[%emt 0:03:57]} Qg6 {[%emt 0:02:51]} 23. Rd6 {[%emt 0:00:59]} Qh5 {[%emt 0:01:12]} 24. Qa3 {[%emt 0:07:10]} a5 {[%emt 0:07:38]} 25. Qd3 {[%emt 0:05:02]} Bf5 {[%emt 0:04:12]} 26. Qe3 {[%emt 0:01:23]} Be6 {[%emt 0:01:34]} 27. Nd4 {[%emt 0:00:18]} Rfe8 {[%emt 0:04:19]} 28. Nxe6 {[%emt 0:01:58]} Rxe6 {[%emt 0:00:53]} 29. Rxe6 {[%emt 0:02:48]} fxe6 {[%emt 0:00:10]} 30. Rc7 {[%emt 0:05:23]} Rf8 {[%emt 0:05:01]} 31. Qg3 {[%emt 0:05:59]} Qh6 {[%emt 0:01:41]} 32. Rb7 {[%emt 0:01:37]} g6 {[%emt 0:03:51]} 33. Rxb5 {[%emt 0:01:37]} Qc1+ {[%emt 0:00:28]} 34. Kh2 {[%emt 0:00:01]} Qd2 {[%emt 0:00:21]} 35. f4 {[%emt 0:06:11]} Qxa2 {[%emt 0:01:58]} 36. Rb7 {[%emt 0:00:31]} Qc4 {[%emt 0:01:34]} 37. Ra7 {[%emt 0:01:22]} a4 {[%emt 0:00:44]} 38. Re7 {[%emt 0:01:22]} Rxf4 {[%emt 0:02:08]} 39. Qe3 {[%emt 0:00:39]} Rf8 {[%emt 0:00:53]} 40. Qh6 {[%emt 0:00:22]} Qf4+ {[%emt 0:00:22]} 41. Qxf4 {[%emt 0:30:04]} Rxf4 {[%emt 0:30:04]} 42. Rxe6 {[%emt 0:00:07]} 1/2-1/2